Cogmind - Beta 14 @@@ ROGUE MODE // 2024.11.15 @ 16:59:10 Player: Turtle Result: Destroyed by G-47 Trooper with Particle Gun Performance ------------- Evolutions (1) 500 Regions Visited (3) 600 Robots Destroyed (10) 50 Value Destroyed (85) 85 Prototype IDs (0) 0 Alien Tech Used (0) 0 Bonus (0) 0 TOTAL SCORE: 1235 Bonus ------- None Cogmind --------- Core Integrity 0/400 Matter 271/300 Energy 100/100 System Corruption 0% Temperature Cool (9) Movement Core (100) Ox1 Location -9/Materials Parts ------- > --- POWER (1) -------- (None) > --- PROPULSION (3) --- (None) > --- UTILITY (3) ------ Small Storage Unit > --- WEAPON (2) ------- (None) > --- INVENTORY (8) ---- Light Ion Engine Hover Unit Hover Unit Mining Laser Peak State ------------ > --- POWER ------------ Light Ion Engine > --- PROPULSION ------- Hover Unit Hover Unit Hover Unit > --- UTILITY ---------- Small Storage Unit Weight Redist. System > --- WEAPON ----------- Assault Rifle Assault Rifle > --- INVENTORY -------- Light Ion Engine Hover Unit Hover Unit Sensor Array Mining Laser Signal Generator [Rating: 10] Favorites ----------- Power Light Ion Engine Engine Light Ion Engine Propulsion Hover Unit Wheel Wheel Hover Unit Hover Unit Utility Small Storage Unit Device Weight Redist. System Storage Small Storage Unit Weapon Assault Rifle Ballistic Gun Assault Rifle Build | -11 -10 -10 -9 ------- Run | Yrd Mat Min Mat Slots Evolved 2 | . . . 2 Power . | . . . . Propulsion 1 | . . . 1 Utility 1 | . . . 1 Weapon . | . . . . Parts Attached 12 | 6 3 . 3 Power 1 | 1 . . . Engine 1 | 1 . . . Core . | . . . . Reactor . | . . . . Propulsion 5 | 2 2 . 1 Treads . | . . . . Leg . | . . . . Wheel 2 | 2 . . . Hover 3 | . 2 . 1 Flight . | . . . . Utility 4 | 1 1 . 2 Device 3 | . 1 . 2 Storage 1 | 1 . . . Processor . | . . . . Hackware . | . . . . Protection . | . . . . Artifact . | . . . . Weapon 2 | 2 . . . Energy Gun . | . . . . Energy Cannon . | . . . . Ballistic Gun 2 | 2 . . . Ballistic Cannon . | . . . . Launcher . | . . . . Special Weapon . | . . . . Impact Weapon . | . . . . Slashing Weapon . | . . . . Piercing Weapon . | . . . . Special Melee Weapon . | . . . . Unidentified Prototypes . | . . . . Parts Lost 8 | . . . 8 Power 1 | . . . 1 Propulsion 3 | . . . 3 Utility 2 | . . . 2 Weapon 2 | . . . 2 Highest Loss Streak 8 | . . . 8 To Critical Strikes . | . . . . Average Slot Usage (%) 94 | . 97 100 83 Engine 12 | . 14 14 8 Hover 26 | . 26 28 26 Device 13 | . 12 14 18 Storage 13 | . 14 14 11 Ballistic Gun 25 | . 28 28 17 Peak Build Rating 10 | 6 8 9 10 Average Rating 7 | 5 7 8 8 On Entrance 5 | . 6 8 9 Naked Turns . | . . . . Heaviest Build 13 | 12 12 12 13 Greatest Support 24 | 20 20 18 24 Greatest Overweight (x) 3 | . 3 . . Average Overweight (x) . | . . . . Largest Inventory Capacity 8 | 8 8 8 8 Average Capacity 7 | 7 8 8 8 Most Carried 7 | 2 5 7 6 Average Carried 4 | . 4 6 4 Final Capacity 8 | 8 8 8 8 Final Carried 7 | 2 5 7 4 Class Distribution -------------------- 100% | Mutant Dominant Class ---------------- Mutant | -10/Materials Mutant | -10/Mines Mutant | -9/Materials Resources | -11 -10 -10 -9 ----------- Run | Yrd Mat Min Mat Matter Collected 446 | 284 58 104 . Remotely . | . . . . Salvage Created 234 | 94 129 11 . Parts 20 | 4 13 3 . Haulers Intercepted 1 | . 1 . . Recyclers Shooed . | . . . . Parts Field Recycled . | . . . . Retrieved Matter . | . . . . Parts Self-Destructed . | . . . . Prevented . | . . . . Kills | -11 -10 -10 -9 ------- Run | Yrd Mat Min Mat Combat Hostiles Destroyed 7 | . 6 1 . Guns 7 | . 6 1 . Classes Destroyed 4 | 2 2 . . Tunneler 1 | 1 . . . Hauler 1 | . 1 . . Recycler 1 | 1 . . . Swarmer 7 | . 6 1 . Best Kill Streak 3 | 1 3 1 . Combat Bots Only 3 | . 3 1 . Max Kills in Single Turn 1 | 1 1 1 . Gunslinging . | . . . . Exploded . | . . . . Melee . | . . . . Uniques/NPCs Destroyed . | . . . . Combat | -11 -10 -10 -9 -------- Run | Yrd Mat Min Mat Hostile Shots Fired 118 | . 24 7 87 Missed 30 | . 9 1 20 Damage Taken 989 | . 116 48 825 Core 448 | . 18 15 415 Absorbed by Shields . | . . . . Core Remaining (%) 93 | 100 . 86 . Volleys Fired 33 | 4 20 2 7 Largest 2 | 2 2 2 2 Hottest 40 | 40 40 40 40 Shots Fired 65 | 8 40 4 13 Gun 65 | 8 40 4 13 Cannon . | . . . . Launcher . | . . . . Special . | . . . . Kinetic 65 | 8 40 4 13 Thermal . | . . . . Explosive . | . . . . Electromagnetic . | . . . . Robot Hit Streak 7 | 5 7 1 6 Robot Miss Streak 4 | 1 4 2 1 Penetration Max . | . . . . Secondary Targets . | . . . . Shots Hit Robots 42 | 6 25 1 10 Core Hits 13 | 3 8 1 1 Critical Kills . | . . . . Critical Parts Destroyed . | . . . . Critical Strikes . | . . . . Melee Attacks . | . . . . Impact . | . . . . Slashing . | . . . . Piercing . | . . . . Sneak Attacks . | . . . . Combat Hostiles . | . . . . Follow-up Attacks . | . . . . Damage Inflicted 586 | 75 336 12 163 Guns 586 | 75 336 12 163 Cannons . | . . . . Explosions . | . . . . Melee . | . . . . Ramming . | . . . . Kinetic 586 | 75 336 12 163 Thermal . | . . . . Explosive . | . . . . Electromagnetic . | . . . . Impact . | . . . . Slashing . | . . . . Piercing . | . . . . Highest Corruption . | . . . . Average Corruption . | . . . . Corruption Purged . | . . . . Corruption Blocked . | . . . . Overload Shots . | . . . . Overflow Damage . | . . . . Projectiles . | . . . . Explosions . | . . . . Melee . | . . . . Knockbacks . | . . . . Impact . | . . . . Kinetic . | . . . . Secondary . | . . . . Self-Inflicted Damage . | . . . . Shots . | . . . . Rammed . | . . . . Targets Rammed . | . . . . Kicked . | . . . . Crushed . | . . . . Highest Temperature 12 | . . . 12 Average Temperature 5 | . . . 5 Received Heat Transfer 480 | . . . 480 Siege Activations . | . . . . Robots Corrupted . | . . . . Combat Hostiles . | . . . . Parts Fried . | . . . . Impact Corruptions . | . . . . Robots Melted . | . . . . Combat Hostiles . | . . . . Parts Melted . | . . . . Heat Transferred . | . . . . Parts Sabotaged . | . . . . Parts Stolen . | . . . . Parts Stripped . | . . . . Power Chain Reactions . | . . . . Alert | -11 -10 -10 -9 ------- Run | Yrd Mat Min Mat Peak Influence 219 | 10 219 66 25 Initial 46 | . 6 46 25 Average 56 | 4 76 59 20 Maximum Alert Level 1 | . 1 . . Low Security (%) 99 | 100 99 100 100 Level 1 . | . . . . Level 2 . | . . . . Level 3 . | . . . . Level 4 . | . . . . Level 5 . | . . . . High Security . | . . . . Max Security . | . . . . Squads Dispatched 2 | . 1 . 1 Investigation . | . . . . Extermination . | . . . . Reinforcement 1 | . 1 . . Assault 1 | . . . 1 Garrison . | . . . . Intercept . | . . . . Searches Triggered . | . . . . Construction Impeded . | . . . . Haulers Reinforced . | . . . . Active Scanning Responses . | . . . . Cargo Convoy Interrupts . | . . . . Stealth | -11 -10 -10 -9 --------- Run | Yrd Mat Min Mat Distress Signals . | . . . . Communications Jammed . | . . . . Distress Signals . | . . . . Times Spotted 22 | . 13 3 6 Peak Tracking Total 6 | . 5 3 6 Tactical Retreats 3 | . 3 . . Traps | -11 -10 -10 -9 ------- Run | Yrd Mat Min Mat Traps Triggered . | . . . . Indirectly . | . . . . Trap Hack Attempts . | . . . . Triggered . | . . . . Disarmed . | . . . . Reprogrammed . | . . . . Reused . | . . . . Traps Extracted . | . . . . Installed . | . . . . Triggered . | . . . . Machines | -11 -10 -10 -9 ---------- Run | Yrd Mat Min Mat Machines Disabled . | . . . . Max in Single Turn . | . . . . Machines Repaired . | . . . . Machines Dismantled . | . . . . Machines Sabotaged . | . . . . Overloaded Fab Kills . | . . . . Hacking | -11 -10 -10 -9 --------- Run | Yrd Mat Min Mat Machines Accessed 1 | . . . 1 Terminals . | . . . . Fabricators . | . . . . Repair Stations . | . . . . Recycling Units . | . . . . Scanalyzers 1 | . . . 1 Garrison Access . | . . . . Total Hacks 4 | . . . 4 Successful 4 | . . . 4 Failed . | . . . . Catastrophic . | . . . . Database Lockouts . | . . . . Manual . | . . . . Terminals . | . . . . Fabricators . | . . . . Repair Stations . | . . . . Recycling Units . | . . . . Scanalyzers 4 | . . . 4 Garrison Access . | . . . . Terminal Hacks . | . . . . Fabricator Hacks . | . . . . Repair Station Hacks . | . . . . Recycling Unit Hacks . | . . . . Scanalyzer 4 | . . . 4 Insert Component 2 | . . . 2 Analyze 2 | . . . 2 Garrison Access Hacks . | . . . . Unauthorized Hacks . | . . . . Terminals . | . . . . Fabricators . | . . . . Repair Stations . | . . . . Recycling Units . | . . . . Scanalyzers . | . . . . Garrison Access . | . . . . Data Cores Recovered . | . . . . Used . | . . . . Hacking Detections . | . . . . Full Trace Events . | . . . . Feedback Events . | . . . . Feedback Blocked . | . . . . Robot Schematics Acquired . | . . . . Robots Built . | . . . . Authchips . | . . . . Time . | . . . . Total Robot Build Rating . | . . . . Part Schematics Acquired 2 | . . . 2 Parts Built . | . . . . Authchips . | . . . . Time . | . . . . Total Part Build Rating . | . . . . Parts Repaired . | . . . . Time . | . . . . Parts Recycled . | . . . . Recycled Matter . | . . . . Retrieved Matter . | . . . . Retrieved Components . | . . . . Parts Scanalyzed 2 | . . . 2 Part Schematics Acquired 2 | . . . 2 Parts Damaged . | . . . . Bothacking | -11 -10 -10 -9 ------------ Run | Yrd Mat Min Mat Used RIF Installer . | . . . . Robots Hacked . | . . . . Non-combat . | . . . . Combat . | . . . . Robot Hacks Applied . | . . . . Relay Couplers Released . | . . . . Fabnet Peak Effective % . | . . . . Robots Rewired . | . . . . Allies Hacked . | . . . . Hacks Repelled . | . . . . Allies | -11 -10 -10 -9 -------- Run | Yrd Mat Min Mat Total Allies . | . . . . Largest Group . | . . . . Highest-Rated Group . | . . . . Highest-Rated Ally . | . . . . Total Orders . | . . . . Ally Attacks . | . . . . Total Damage . | . . . . Kills . | . . . . Allies Corrupted . | . . . . Allies Melted . | . . . . Intel | -11 -10 -10 -9 ------- Run | Yrd Mat Min Mat Robot Analysis Total . | . . . . Derelict Logs Recovered . | . . . . Drone Launches . | . . . . Drone Recoveries . | . . . . Exploration | -11 -10 -10 -9 ------------- Run | Yrd Mat Min Mat Turns Passed 829 | 67 515 58 189 Spaces Moved 622 | 56 448 80 38 Core 3 | 1 2 . . Treads . | . . . . Legs . | . . . . Wheels 72 | 55 17 . . Hover 547 | . 429 80 38 Flight . | . . . . Fastest Speed 50 | 50 56 56 52 Average Speed 59 | 79 57 56 52 Slowest Speed 200 | 80 200 56 52 Overloaded Moves . | . . . . Propulsion Burnouts . | . . . . Robots Hopped . | . . . . Cave-ins Triggered . | . . . . Exploration Rate (%) 25 | 4 73 22 4 Regions Visited 3 Branch Regions 1 Pre-discovered Areas . | . . . . Known Exits Taken . | . . . . Unknown Exits Taken 3 | 1 1 1 . Scrap Searched 1 | . . 1 . Spaces Dug . | . . . . Terrain Destroyed . | . . . . Melee . | . . . . Projectile . | . . . . AOE . | . . . . Terrain Rammed . | . . . . Walls Destroyed . | . . . . Machines Disabled . | . . . . Actions | -11 -10 -10 -9 --------- Run | Yrd Mat Min Mat Total 1014 | 67 664 88 195 Wait 336 | . 187 5 144 Move 619 | 55 447 79 38 Hop . | . . . . Pick Up 7 | 2 3 2 . Fast Attach 10 | 6 3 . 1 Attach 2 | . . . 2 Detach 3 | . 2 . 1 Swap . | . . . . Drop 4 | . 2 . 2 Fire 33 | 4 20 2 7 Melee . | . . . . Ram . | . . . . Kick . | . . . . Crush . | . . . . Escape Stasis . | . . . . Rewire . | . . . . Trap . | . . . . Miscellaneous . | . . . . Route ------- -11/Scrapyard -10/Materials (discovered 4 exits: *Mat x2 / [*Min x2]) -10/Mines -9/Materials History --------- Turn | Location | Event 18 | -11/Scrapyard | Discovered new exit (range 16) 68 | -11/Scrapyard | Entered Materials 109 | -10/Materials | Discovered new exit (range 15) 312 | -10/Materials | Build established: Mutant 415 | -10/Materials | Discovered new exit (range 12) 439 | -10/Materials | Discovered new exit (range 4) 572 | -10/Materials | Discovered new exit (range 9) 583 | -10/Materials | Entered Mines 584 | -10/Mines | Met a Derelict testing a Signal Generator 586 | -10/Mines | Found Signal Generator 613 | -10/Mines | Discovered new exit (range 11) 632 | -10/Mines | Found DCF Scrap (11 items) 641 | -10/Mines | Entered Materials 641 | -9/Materials | Evolved 2 slots: Propulsion x1, Utility x1 815 | -9/Materials | Core integrity fell below 50% 825 | -9/Materials | Core integrity fell below 20% 830 | -9/Materials | Destroyed by G-47 Trooper with Particle Gun Last Messages --------------- Schematic downloaded. 00661_ Dropped Weight Redist. System. 00661_ Acquired Weight Redist. System. 00677_ ALERT: Intercepting significant anomalous signal. Redirecting assault force. 00782_ C-30 ARC: "LOCATED POTENTIAL SOURCE OF ANOMALOUS SIGNAL. NEUTRALIZING." 00782_ C-30 ARC bursts open, deploying its payload. 00782_ G-34 Mercenary unfolds itself. 00782_ I-25 Savior unfolds itself. 00792_ Y-45 Defender: "LOCATED POTENTIAL SOURCE OF ANOMALOUS SIGNAL. NEUTRALIZING." 00794_ Lgt. Ion Engine destroyed. 00796_ Hover Unit destroyed. 00798_ Assault Rifle destroyed. 00802_ Critical hit (Burn: +37). 00804_ Weight Redist. System destroyed. 00808_ Sensor Array destroyed. 00808_ Hover Unit destroyed. Map ----- +----------------------------------------------------+ | | | | | | | | | | | | | | | | | | | | | ??????????????????????????????????????????????? | | ?????????????????###########??????????????????? | | ?????????????????#!!! #??????????????????? | | ?????????????????#!!! #??????????????????? | | ?????????????????#!! """ #??????????????????? | | ?????????????????# """ #??????????????????? | | ?????????????????# """ #??????????????????? | | ?????????????????# #??????????????????? | | ?????????????????# !#??????????????????? | | ?????????????????# #??????????????????? | | ????????????????######+############???????????? | | ????????????????# ?????????? | | ????????????????# ?????????? | | ????????????????# ?????????? | | ????????????????####Y###############??????????? | | ????????????????# %g@ #?????????????????????? | | ????????????????#"Sggg i#?????????????????????? | | ????????????????#""" #?????????????????????? | | ????????????????# "" #?????????????????????? | | ????????????????# #?????????????????????? | | ????????????????#########?????????????????????? | | ??????????????????????????????????????????????? | | ??????????????????????????????????????????????? | | ??????????????????????????????????????????????? | | ??????????????????????????????????????????????? | | ??????????????????????????????????????????????? | | ??????????????????????????????????????????????? | | ??????????????????????????????????????????????? | | ??????????????????????????????????????????????? | | ??????????????????????????????????????????????? | | ??????????????????????????????????????????????? | | ??????????????????????????????????????????????? | | ??????????????????????????????????????????????? | | ??????????????????????????????????????????????? | | ??????????????????????????????????????????????? | | ??????????????????????????????????????????????? | | ??????????????????????????????????????????????? | | ??????????????????????????????????????????????? | | ??????????????????????????????????????????????? | | ??????????????????????????????????????????????? | +----------------------------------------------------+ Best States ------------- Heat Dissipation 28 Energy Generation 10 Energy Capacity 125 Matter Stores 300 Matter Capacity 300 Sight Range 16 Robot Scan Range 14 Terrain Scan Density 10 Additional Mass Support 6 Evasion (%) 54 Item Schematics ----------------- Hover Unit | -9/Materials | Scanalyzed Weight Redist. System | -9/Materials | Scanalyzed Robot Schematics ------------------ None Fabricated ------------ Nothing Alien Tech Used ----------------- None Achievements -------------- None Challenges ------------ None Game ------ Seed ExoskeletonMinesnifferSuite Manual? 0 Play Time 00:15:13 Cumulative 31.5 hours Start 2024.10.04 @ 20:37:20 End 2024.11.15 @ 16:59:10 Sessions 2 Manual Loads 0 Difficulty Rogue Special Mode None Game No. 44 Rogue 44 Adventurer 0 Explorer 0 Win Type - Total 0 Types 0/0/0/0/0/0/0/0/0 Lore% 15 Gallery% 24 Achievement% 23 Wizard Run 0 Options --------- Layout 1 ASCII 0 Keyboard 1 Movement Arrows Keybinds 0 Fullscreen 1 Font 24/Smallcaps Map View 50x40 Zoom Use 0% Tactical HUD 1 Map Filters NONE Filters NONE Steam 1 RUN: 07495fb9-3b5e-4708-9cfc-d0c1cd8b8c9e